fUSD/lending_fUSD_20260630
["ID","MTS","AMOUNT","RATE_DAILY","PERIOD"]
[426750494,1782779446000,-159.91754151,0.00025717,2]
[426750496,1782779446000,-457.28884923,0.00025721,2]
[426750503,1782779446000,-306.42651503,0.00025721,2]
[426750500,1782779446000,-186.74361628,0.00025721,2]
[426750501,1782779446000,-447.75346624,0.00025721,2]
[426750499,1782779446000,-210.13875175,0.00025721,2]
[426750505,1782779446000,-494.24722835,0.00025721,2]
[426750502,1782779446000,-498.06942477,0.00025721,2]
[426750511,1782779446000,-463.02834895,0.00025721,2]
[426750513,1782779446000,-564.09153145,0.00025721,2]
[426750514,1782779446000,-512.13441145,0.00025721,2]
[426750512,1782779446000,-394.70125731,0.00025721,2]
[426750506,1782779446000,-185.75171505,0.00025721,2]
[426750508,1782779446000,-290.14612559,0.00025721,2]
[426750507,1782779446000,-229.81167333,0.00025721,2]
[426750510,1782779446000,-242.61557316,0.00025721,2]
[426750515,1782779446000,-537.27364224,0.00025721,2]
[426750537,1782779446000,-449.03,0.00026027,7]
[426750539,1782779446000,-154.46935744,0.00026087,2]
[426750536,1782779446000,-229.9,0.00025874,2]
[426750564,1782779446000,-165.89211282,0.00026279,2]
[426750563,1782779446000,-317.1586583,0.00026279,2]
[426750566,1782779446000,-374.83633304,0.00026279,2]
[426750569,1782779446000,-169.25631379,0.00026279,2]
[426750567,1782779446000,-229.17957011,0.00026279,2]
[426750570,1782779446000,-161.69376989,0.00026279,2]
[426750571,1782779446000,-246.28385176,0.00026279,2]
[426750577,1782779446000,-664.09256636,0.00026279,2]
[426750574,1782779446000,-151.03583196,0.00026279,2]
[426750575,1782779446000,-166.4894119,0.00026279,2]
[426750576,1782779446000,-671.63019936,0.00026279,2]
[426750572,1782779446000,-168.88152899,0.00026279,2]
[426750573,1782779446000,-373.48723256,0.00026279,2]
[426750579,1782779446000,-432.6875066,0.00026279,2]
[426750582,1782779446000,-171.76589784,0.00026279,2]
[426750580,1782779446000,-169.83013097,0.00026279,2]
[426750581,1782779446000,-386.76487263,0.00026279,2]
[426750583,1782779446000,-459.63977254,0.00026279,2]
[426750540,1782779446000,-44190.32603756,0.00026231,2]
[426750561,1782779446000,-322.56784184,0.00026279,2]
[426750568,1782779446000,-164.08299411,0.00026279,2]
[426750578,1782779446000,-434.32580055,0.00026279,2]
[426750565,1782779446000,-156.18192088,0.00026279,2]
[426750542,1782779446000,-202.22522026,0.00026276,2]
[426750562,1782779446000,-169.80619532,0.00026279,2]
[426750548,1782779446000,-155.65485519,0.00026276,2]
[426750549,1782779446000,-319.83508303,0.00026276,2]
[426750541,1782779446000,-635.60533158,0.00026276,2]
[426750544,1782779446000,-683.90693765,0.00026276,2]
[426750545,1782779446000,-641.82681337,0.00026276,2]
[426750543,1782779446000,-604.69302411,0.00026276,2]
[426750547,1782779446000,-251.32007514,0.00026276,2]
[426750546,1782779446000,-842.36982224,0.00026276,2]
[426750550,1782779446000,-404.33178084,0.00026276,2]
[426750553,1782779446000,-332.19039914,0.00026279,2]
[426750556,1782779446000,-609.71846564,0.00026279,2]
[426750555,1782779446000,-314.20712266,0.00026279,2]
[426750552,1782779446000,-239.58028027,0.00026279,2]
[426750554,1782779446000,-841.3229201,0.00026279,2]
[426750557,1782779446000,-765.88936412,0.00026279,2]
[426750558,1782779446000,-657.778843,0.00026279,2]
[426750551,1782779446000,-690.27904546,0.00026279,2]
[426750559,1782779446000,-368.40589506,0.00026279,2]
[426750560,1782779446000,-221.01631383,0.00026279,2]
[426750624,1782779447000,-493.05646104,0.00026433,2]
[426750620,1782779447000,-700.60042409,0.0002628,2]
[426750619,1782779447000,-660.42437177,0.0002628,2]
[426750622,1782779447000,-327.57919308,0.00026397,2]
[426750621,1782779447000,-459.7028258,0.0002628,2]
[426750615,1782779447000,-233.0673327,0.0002628,2]
[426750616,1782779447000,-569.52377516,0.0002628,2]
[426750617,1782779447000,-626.90968211,0.0002628,2]
[426750613,1782779447000,-747.06329222,0.00026279,2]
[426750625,1782779447000,-186.7437369,0.00026433,2]
[426750623,1782779447000,-337.11346163,0.00026433,2]
[426750618,1782779447000,-457.59203963,0.0002628,2]
[426750626,1782779447000,-322.65957615,0.00026433,2]
[426750636,1782779447000,-441.13561914,0.00026435,2]
[426750628,1782779447000,-186.27332314,0.00026433,2]
[426750629,1782779447000,-695.9365518,0.00026433,2]
[426750630,1782779447000,-721.58883631,0.00026433,2]
[426750632,1782779447000,-717.17861072,0.00026433,2]
[426750631,1782779447000,-628.7313847,0.00026433,2]
[426750634,1782779447000,-353.79163246,0.00026435,2]
[426750635,1782779447000,-313.02219756,0.00026435,2]
[426750644,1782779447000,-794.50666447,0.00026834,2]
[426750633,1782779447000,-194.99002037,0.00026435,2]
[426750643,1782779447000,-165.47843189,0.00026789,2]
[426750642,1782779447000,-179.25906787,0.00026696,2]
[426750612,1782779447000,-896.39557452,0.00026279,2]
[426750627,1782779447000,-713.93716815,0.00026433,2]
[426750614,1782779447000,-534.38657598,0.0002628,2]
[426750591,1782779447000,-331.67554682,0.00026279,2]
[426750606,1782779447000,-384.76640283,0.00026279,2]
[426750584,1782779447000,-265.46981633,0.00026279,2]
[426750585,1782779447000,-484.75380255,0.00026279,2]
[426750587,1782779447000,-658.99630447,0.00026279,2]
[426750586,1782779447000,-413.90750825,0.00026279,2]
[426750588,1782779447000,-459.62334666,0.00026279,2]
[426750589,1782779447000,-580.29225119,0.00026279,2]
[426750592,1782779447000,-403.38515777,0.00026279,2]
[426750593,1782779447000,-213.98099958,0.00026279,2]
[426750590,1782779447000,-409.26730357,0.00026279,2]
[426750596,1782779447000,-428.00617215,0.00026279,2]
[426750598,1782779447000,-485.23114631,0.00026279,2]
[426750638,1782779447000,-150.0,0.00026641,2]
[426750608,1782779447000,-458.48454928,0.00026279,2]
[426750594,1782779447000,-165.37696929,0.00026279,2]
[426750597,1782779447000,-442.41802345,0.00026279,2]
[426750599,1782779447000,-617.37113193,0.00026279,2]
[426750600,1782779447000,-592.05188597,0.00026279,2]
[426750610,1782779447000,-438.86715345,0.00026279,2]
[426750611,1782779447000,-434.70408779,0.00026279,2]
[426750609,1782779447000,-420.85316974,0.00026279,2]
[426750601,1782779447000,-752.12204193,0.00026279,2]
[426750602,1782779447000,-153.33589812,0.00026279,2]
[426750603,1782779447000,-682.84588194,0.00026279,2]
[426750605,1782779447000,-556.58483058,0.00026279,2]
[426750607,1782779447000,-380.3674483,0.00026279,2]
[426750604,1782779447000,-716.36485632,0.00026279,2]
[426750595,1782779447000,-161.44398867,0.00026279,2]
[426750637,1782779447000,-505.0,0.00026519,12]
[426750694,1782779447000,-19557.52,0.00027397,10]
[426750639,1782779447000,-1230.0,0.00026659,2]
[426750675,1782779447000,-599.49168476,0.00027397,2]
[426750676,1782779447000,-500.0,0.00027397,2]
[426750678,1782779447000,-500.0,0.00027397,2]
[426750681,1782779447000,-500.0,0.00027397,2]
[426750680,1782779447000,-500.0,0.00027397,2]
[426750683,1782779447000,-500.0,0.00027397,2]
[426750671,1782779447000,-187.9073901,0.00027397,7]
[426750677,1782779447000,-500.0,0.00027397,2]
[426750679,1782779447000,-500.0,0.00027397,2]
[426750682,1782779447000,-500.0,0.00027397,2]
[426750684,1782779447000,-500.0,0.00027397,2]
[426750685,1782779447000,-638.54236203,0.00027397,2]
[426750674,1782779447000,-500.0,0.00027397,2]
[426750691,1782779447000,-300.0,0.00027397,2]
[426750687,1782779447000,-150.0,0.00027397,2]
[426750688,1782779447000,-1500.0,0.00027397,2]
[426750693,1782779447000,-23469.03,0.00027397,10]
[426750692,1782779447000,-1476.29,0.00027397,2]
[426750689,1782779447000,-1026.86,0.00027397,2]
[426750695,1782779447000,-339.80527434,0.00027397,2]
[426750697,1782779447000,-257.29701076,0.00027397,2]
[426750700,1782779447000,-374.8,0.000274,7]
[426750699,1782779447000,-509.70791151,0.00027397,2]
[426750696,1782779447000,-679.61054868,0.00027397,2]
[426750698,1782779447000,-169.90263717,0.00027397,2]
[426750640,1782779447000,-179.25906788,0.00026696,2]
[426750690,1782779447000,-3098.76,0.00027397,2]
[426750673,1782779447000,-500.0,0.00027397,2]
[426750686,1782779447000,-150.0,0.00027397,2]
[426750670,1782779447000,-505.0,0.00027342,13]
[426750672,1782779447000,-373.03697452,0.00027397,2]
[426750645,1782779447000,-755.86628014,0.00026834,2]
[426750646,1782779447000,-854.88367207,0.00026834,2]
[426750647,1782779447000,-802.28351672,0.00026834,2]
[426750654,1782779447000,-875.75053011,0.00026839,2]
[426750649,1782779447000,-940.15255241,0.00026838,2]
[426750650,1782779447000,-853.55735242,0.00026838,2]
[426750657,1782779447000,-897.5439,0.0002698,14]
[426750648,1782779447000,-762.14808205,0.00026838,2]
[426750656,1782779447000,-663.35865782,0.0002698,14]
[426750653,1782779447000,-825.53046472,0.00026839,2]
[426750651,1782779447000,-895.4560704,0.00026838,2]
[426750655,1782779447000,-202117.7008285,0.0002697,2]
[426750641,1782779447000,-151.95595905,0.00026696,2]
[426750667,1782779447000,-154.46935744,0.00027207,2]
[426750664,1782779447000,-372.26,0.00027079,7]
[426750668,1782779447000,-152.0,0.00027273,3]
[426750666,1782779447000,-3565.0,0.00027112,2]
[426750652,1782779447000,-933.82911528,0.00026838,2]
[426750663,1782779447000,-1000.0,0.00027,2]
[426750665,1782779447000,-6087.0,0.00027112,2]
[426750662,1782779447000,-901.98604539,0.00026994,2]
[426750661,1782779447000,-869.92068975,0.00026994,2]
[426750658,1782779447000,-785.91423088,0.00026994,2]
[426750669,1782779447000,-152.0,0.00027273,5]
[426750659,1782779447000,-896.4732634,0.00026994,2]
[426750660,1782779447000,-892.42146019,0.00026994,2]
[426750741,1782779448000,-1082.38325447,0.00027835,2]
[426750740,1782779448000,-1043.9048277,0.00027835,2]
[426750743,1782779448000,-272.0,0.0002784,2]
[426750739,1782779448000,-1070.90575223,0.00027835,2]
[426750738,1782779448000,-1075.76791608,0.00027835,2]
[426750732,1782779448000,-738.51,0.00027779,2]
[426750735,1782779448000,-154.76,0.00027824,2]
[426750733,1782779448000,-154.76,0.00027794,30]
[426750737,1782779448000,-943.09707705,0.00027835,2]
[426750744,1782779448000,-253.0,0.0002784,2]
[426750742,1782779448000,-542.0,0.0002784,2]
[426750734,1782779448000,-154.81,0.00027794,30]
[426750736,1782779448000,-154.81,0.00027824,2]
[426750745,1782779448000,-154.76,0.00027855,7]
[426750746,1782779448000,-154.81,0.00027855,7]
[426750747,1782779448000,-335.77,0.00027872,2]
[426750751,1782779448000,-154.76,0.00027885,30]
[426750750,1782779448000,-235.55,0.00027872,2]
[426750755,1782779448000,-154.76,0.00027946,7]
[426750757,1782779448000,-849.51318585,0.00027956,2]
[426750753,1782779448000,-154.76,0.00027916,2]
[426750749,1782779448000,-337.82,0.00027872,2]
[426750752,1782779448000,-154.81,0.00027885,30]
[426750756,1782779448000,-154.81,0.00027946,7]
[426750754,1782779448000,-154.81,0.00027916,2]
[426750758,1782779448000,-150.0,0.00027973,2]
[426750759,1782779448000,-154.76,0.00027977,30]
[426750748,1782779448000,-235.67,0.00027872,2]
[426750727,1782779448000,-235.55,0.00027711,7]
[426750705,1782779448000,-154.76,0.0002755,2]
[426750722,1782779448000,-154.76,0.00027702,30]
[426750702,1782779448000,-500.0,0.000275,7]
[426750701,1782779448000,-326.59,0.000274,7]
[426750704,1782779448000,-335.77,0.0002755,30]
[426750703,1782779448000,-159.39407064,0.00027525,2]
[426750707,1782779448000,-235.67,0.0002755,30]
[426750706,1782779448000,-154.81,0.0002755,2]
[426750719,1782779448000,-154.81,0.00027672,7]
[426750709,1782779448000,-235.55,0.0002755,30]
[426750710,1782779448000,-154.76,0.0002758,7]
[426750708,1782779448000,-337.82,0.0002755,30]
[426750712,1782779448000,-154.76,0.00027611,30]
[426750714,1782779448000,-154.76,0.00027641,2]
[426750711,1782779448000,-154.81,0.0002758,7]
[426750713,1782779448000,-154.81,0.00027611,30]
[426750717,1782779448000,-1025.86040648,0.00027672,2]
[426750718,1782779448000,-154.76,0.00027672,7]
[426750716,1782779448000,-953.40799736,0.00027672,2]
[426750715,1782779448000,-154.81,0.00027641,2]
[426750721,1782779448000,-1006.71421048,0.00027676,2]
[426750720,1782779448000,-1128.18306289,0.00027676,2]
[426750731,1782779448000,-154.81,0.00027763,7]
[426750724,1782779448000,-335.77,0.00027711,7]
[426750725,1782779448000,-235.67,0.00027711,7]
[426750723,1782779448000,-154.81,0.00027702,30]
[426750728,1782779448000,-154.76,0.00027733,2]
[426750730,1782779448000,-154.76,0.00027763,7]
[426750726,1782779448000,-337.82,0.00027711,7]
[426750729,1782779448000,-154.81,0.00027733,2]
[426750769,1782779448000,-154.76,0.00028068,30]
[426750771,1782779448000,-154.76,0.00028099,2]
[426750762,1782779448000,-154.81,0.00028007,2]
[426750794,1782779448000,-154.0,0.00028619,30]
[426750793,1782779448000,-221.0,0.00028619,30]
[426750795,1782779448000,-332.0,0.00028619,30]
[426750799,1782779448000,-464.0,0.00028619,30]
[426750802,1782779448000,-652.0,0.00028619,30]
[426750801,1782779448000,-171.0,0.00028619,30]
[426750800,1782779448000,-152.0,0.00028619,30]
[426750810,1782779448000,-150.0,0.00028767,2]
[426750808,1782779448000,-337.82,0.00028677,7]
[426750809,1782779448000,-154.0,0.00028697,30]
[426750803,1782779448000,-163.0,0.00028619,30]
[426750805,1782779448000,-1000.0,0.00028658,2]
[426750804,1782779448000,-44190.32603756,0.0002862,2]
[426750807,1782779448000,-335.77,0.00028677,7]
[426750812,1782779448000,-335.77,0.00028838,2]
[426750820,1782779448000,-1169.17340702,0.00028933,2]
[426750822,1782779448000,-1204.860066,0.00028933,2]
[426750821,1782779448000,-1056.2687263,0.00028933,2]
[426750813,1782779448000,-337.82,0.00028838,2]
[426750811,1782779448000,-1019.41582302,0.00028794,2]
[426750818,1782779448000,-1112.30933026,0.00028929,2]
[426750816,1782779448000,-190.0,0.000289,2]
[426750814,1782779448000,-152.4,0.00028863,7]
[426750815,1782779448000,-185.37,0.00028863,7]
[426750819,1782779448000,-1196.8371409,0.00028929,2]
[426750817,1782779448000,-179.25906787,0.00028922,2]
[426750770,1782779448000,-154.81,0.00028068,30]
[426750796,1782779448000,-392.0,0.00028619,30]
[426750789,1782779448000,-335.77,0.00028516,30]
[426750806,1782779448000,-189.18737783,0.00028663,2]
[426750786,1782779448000,-337.82,0.00028355,2]
[426750790,1782779448000,-337.82,0.00028516,30]
[426750760,1782779448000,-154.81,0.00027977,30]
[426750764,1782779448000,-235.67,0.00028033,30]
[426750761,1782779448000,-154.76,0.00028007,2]
[426750768,1782779448000,-154.81,0.00028038,7]
[426750765,1782779448000,-337.82,0.00028033,30]
[426750766,1782779448000,-235.55,0.00028033,30]
[426750767,1782779448000,-154.76,0.00028038,7]
[426750772,1782779448000,-154.81,0.00028099,2]
[426750774,1782779448000,-154.76,0.0002813,7]
[426750775,1782779448000,-154.9,0.0002813,7]
[426750776,1782779448000,-505.0,0.00028165,13]
[426750779,1782779448000,-235.67,0.00028194,7]
[426750782,1782779448000,-200.0,0.00028305,2]
[426750763,1782779448000,-335.77,0.00028033,30]
[426750773,1782779448000,-179.25906787,0.00028101,2]
[426750781,1782779448000,-235.55,0.00028194,7]
[426750791,1782779448000,-313.63636363,0.00028538,2]
[426750792,1782779448000,-157.0,0.00028617,30]
[426750797,1782779448000,-156.0,0.00028619,30]
[426750787,1782779448000,-374.8,0.000284,7]
[426750798,1782779448000,-176.0,0.00028619,30]
[426750788,1782779448000,-326.59,0.000284,7]
[426750780,1782779448000,-337.82,0.00028194,7]
[426750784,1782779448000,-154.46935744,0.00028327,2]
[426750783,1782779448000,-1000.0,0.00028315,2]
[426750777,1782779448000,-335.77,0.00028194,7]
[426750778,1782779448000,-337.81,0.00028194,7]
[426750785,1782779448000,-335.77,0.00028355,2]
[426750863,1782779449000,-1262.78046354,0.00029097,2]
[426750862,1782779449000,-1249.39004427,0.00029097,2]
[426750866,1782779449000,-841.11,0.0002921,7]
[426750849,1782779449000,-500.0,0.00029,2]
[426750860,1782779449000,-529.35487016,0.00029,2]
[426750858,1782779449000,-152.4,0.00029,7]
[426750857,1782779449000,-193.24830951,0.00029,2]
[426750868,1782779449000,-326.59,0.000293,7]
[426750869,1782779449000,-1686.58,0.00029315,2]
[426750856,1782779449000,-177.27485679,0.00029,2]
[426750861,1782779449000,-335.82,0.00029,30]
[426750859,1782779449000,-185.37,0.00029,7]
[426750864,1782779449000,-2000.0,0.000291,7]
[426750878,1782779449000,-392.0,0.00029619,30]
[426750865,1782779449000,-612.64316548,0.00029169,2]
[426750870,1782779449000,-150.0,0.00029372,2]
[426750873,1782779449000,-157.0,0.00029617,30]
[426750872,1782779449000,-1000.0,0.000295,2]
[426750876,1782779449000,-154.0,0.00029619,30]
[426750880,1782779449000,-176.0,0.00029619,30]
[426750879,1782779449000,-156.0,0.00029619,30]
[426750871,1782779449000,-154.46935744,0.00029448,2]
[426750877,1782779449000,-332.0,0.00029619,30]
[426750881,1782779449000,-464.0,0.00029619,30]
[426750875,1782779449000,-221.0,0.00029619,30]
[426750874,1782779449000,-372.26,0.00029619,7]
[426750847,1782779449000,-500.0,0.00029,2]
[426750867,1782779449000,-374.8,0.000293,7]
[426750854,1782779449000,-621.69,0.00029,2]
[426750883,1782779449000,-171.0,0.00029619,30]
[426750855,1782779449000,-731.71900201,0.00029,2]
[426750823,1782779449000,-1316.21357338,0.00028933,2]
[426750830,1782779449000,-500.0,0.00029,2]
[426750824,1782779449000,-1051.66186579,0.00028973,2]
[426750827,1782779449000,-500.0,0.00029,2]
[426750828,1782779449000,-500.0,0.00029,2]
[426750825,1782779449000,-505.0,0.00028987,14]
[426750826,1782779449000,-500.0,0.00029,2]
[426750829,1782779449000,-500.0,0.00029,2]
[426750832,1782779449000,-500.0,0.00029,2]
[426750841,1782779449000,-500.0,0.00029,2]
[426750843,1782779449000,-500.0,0.00029,2]
[426750840,1782779449000,-500.0,0.00029,2]
[426750842,1782779449000,-500.0,0.00029,2]
[426750833,1782779449000,-500.0,0.00029,2]
[426750834,1782779449000,-500.0,0.00029,2]
[426750835,1782779449000,-500.0,0.00029,2]
[426750836,1782779449000,-500.0,0.00029,2]
[426750839,1782779449000,-500.0,0.00029,2]
[426750837,1782779449000,-500.0,0.00029,2]
[426750838,1782779449000,-500.0,0.00029,2]
[426750844,1782779449000,-500.0,0.00029,2]
[426750848,1782779449000,-500.0,0.00029,2]
[426750846,1782779449000,-500.0,0.00029,2]
[426750845,1782779449000,-500.0,0.00029,2]
[426750851,1782779449000,-500.0,0.00029,2]
[426750852,1782779449000,-500.0,0.00029,2]
[426750850,1782779449000,-500.0,0.00029,2]
[426750853,1782779449000,-500.0,0.00029,2]
[426750893,1782779449000,-324.0789761,0.000299,2]
[426750831,1782779449000,-500.0,0.00029,2]
[426750882,1782779449000,-152.0,0.00029619,30]
[426750910,1782779449000,-219.2508371,0.0002994,2]
[426750919,1782779449000,-22499.99,0.0003,2]
[426750921,1782779449000,-3558.74,0.0003,2]
[426750924,1782779449000,-12499.95,0.0003,2]
[426750923,1782779449000,-22499.98,0.0003,2]
[426750922,1782779449000,-9999.99,0.0003,2]
[426750920,1782779449000,-22499.99,0.0003,2]
[426750925,1782779449000,-12499.98,0.0003,2]
[426750926,1782779449000,-233.98,0.0003,2]
[426750927,1782779449000,-1925.14,0.0003,2]
[426750929,1782779449000,-10000.0,0.0003,2]
[426750928,1782779449000,-12500.0,0.0003,2]
[426750930,1782779449000,-22500.0,0.0003,2]
[426750908,1782779449000,-324.0789761,0.000299,2]
[426750931,1782779449000,-486.4810255,0.00030109,7]
[426750933,1782779449000,-3565.0,0.00030112,2]
[426750943,1782779449000,-500.0,0.00030136,2]
[426750941,1782779449000,-500.0,0.00030136,2]
[426750935,1782779449000,-22500.0,0.00030125,2]
[426750942,1782779449000,-500.0,0.00030136,2]
[426750940,1782779449000,-500.0,0.00030136,2]
[426750934,1782779449000,-151.0,0.00030122,7]
[426750939,1782779449000,-500.0,0.00030136,2]
[426750932,1782779449000,-6087.0,0.00030112,2]
[426750936,1782779449000,-500.0,0.00030136,2]
[426750938,1782779449000,-500.0,0.00030136,2]
[426750937,1782779449000,-500.0,0.00030136,2]
[426750944,1782779449000,-500.0,0.00030136,2]
[426750945,1782779449000,-500.0,0.00030136,2]
[426750914,1782779449000,-525.4,0.00029999,120]
[426750885,1782779449000,-163.0,0.00029619,30]
[426750909,1782779449000,-1737.06,0.00029915,7]
[426750915,1782779449000,-500.0,0.00029999,120]
[426750884,1782779449000,-652.0,0.00029619,30]
[426750888,1782779449000,-505.0,0.0002981,15]
[426750889,1782779449000,-324.07897618,0.000299,2]
[426750892,1782779449000,-324.0789761,0.000299,2]
[426750886,1782779449000,-1230.0,0.00029659,2]
[426750887,1782779449000,-154.0,0.00029697,30]
[426750891,1782779449000,-324.0789761,0.000299,2]
[426750894,1782779449000,-324.0789761,0.000299,2]
[426750895,1782779449000,-324.0789761,0.000299,2]
[426750896,1782779449000,-324.0789761,0.000299,2]
[426750897,1782779449000,-324.0789761,0.000299,2]
[426750900,1782779449000,-324.0789761,0.000299,2]
[426750904,1782779449000,-324.0789761,0.000299,2]
[426750890,1782779449000,-324.0789761,0.000299,2]
[426750899,1782779449000,-324.0789761,0.000299,2]
[426750905,1782779449000,-324.0789761,0.000299,2]
[426750916,1782779449000,-800.0,0.0003,2]
[426750913,1782779449000,-500.0,0.00029999,14]
[426750911,1782779449000,-511.14,0.00029999,120]
[426750906,1782779449000,-324.0789761,0.000299,2]
[426750918,1782779449000,-10016.37,0.0003,2]
[426750912,1782779449000,-683.34,0.00029999,120]
[426750907,1782779449000,-324.0789761,0.000299,2]
[426750901,1782779449000,-324.0789761,0.000299,2]
[426750903,1782779449000,-324.0789761,0.000299,2]
[426750902,1782779449000,-324.0789761,0.000299,2]
[426750917,1782779449000,-2000.0,0.0003,2]
[426750898,1782779449000,-324.0789761,0.000299,2]
[426750979,1782779450000,-279.98224209,0.00030411,60]
[426750987,1782779450000,-154.0,0.00030619,30]
[426750988,1782779450000,-332.0,0.00030619,30]
[426750978,1782779450000,-161.45,0.00030411,120]
[426750970,1782779450000,-155.88635779,0.0003014,4]
[426750972,1782779450000,-361.0,0.0003016,2]
[426750973,1782779450000,-12500.0,0.0003025,2]
[426750980,1782779450000,-800.0,0.000305,2]
[426750975,1782779450000,-175.74808293,0.00030275,2]
[426750974,1782779450000,-3460.68,0.0003025,2]
[426750981,1782779450000,-326.59,0.000305,7]
[426750989,1782779450000,-392.0,0.00030619,30]
[426750984,1782779450000,-154.46935744,0.00030568,2]
[426750986,1782779450000,-221.0,0.00030619,30]
[426750985,1782779450000,-157.0,0.00030617,30]
[426750990,1782779450000,-156.0,0.00030619,30]
[426751000,1782779450000,-1346.96582778,0.00030818,2]
[426750991,1782779450000,-176.0,0.00030619,30]
[426750992,1782779450000,-464.0,0.00030619,30]
[426750993,1782779450000,-152.0,0.00030619,30]
[426750996,1782779450000,-163.0,0.00030619,30]
[426750968,1782779450000,-155.88635779,0.0003014,4]
[426750983,1782779450000,-154.298,0.00030535,26]
[426750969,1782779450000,-155.88635779,0.0003014,4]
[426750962,1782779450000,-298.64558948,0.00030137,2]
[426750966,1782779450000,-155.88635779,0.0003014,4]
[426750946,1782779450000,-500.0,0.00030136,2]
[426750947,1782779450000,-500.0,0.00030136,2]
[426750952,1782779450000,-500.0,0.00030136,2]
[426750951,1782779450000,-500.0,0.00030136,2]
[426750948,1782779450000,-500.0,0.00030136,2]
[426750950,1782779450000,-500.0,0.00030136,2]
[426750949,1782779450000,-500.0,0.00030136,2]
[426750954,1782779450000,-500.0,0.00030136,2]
[426750953,1782779450000,-500.0,0.00030136,2]
[426750955,1782779450000,-500.0,0.00030136,2]
[426750994,1782779450000,-171.0,0.00030619,30]
[426750959,1782779450000,-500.0,0.00030136,2]
[426750956,1782779450000,-500.0,0.00030136,2]
[426750958,1782779450000,-500.0,0.00030136,2]
[426750957,1782779450000,-500.0,0.00030136,2]
[426750965,1782779450000,-155.88635779,0.0003014,4]
[426750960,1782779450000,-526.60827864,0.00030136,2]
[426750964,1782779450000,-155.88635779,0.0003014,4]
[426750963,1782779450000,-1000.0,0.00030137,120]
[426750961,1782779450000,-150.0,0.00030137,2]
[426750967,1782779450000,-155.88635779,0.0003014,4]
[426750976,1782779450000,-1686.58,0.00030377,2]
[426750977,1782779450000,-162.65,0.000304,7]
[426750971,1782779450000,-154.88635779,0.0003014,4]
[426750997,1782779450000,-505.0,0.00030633,15]
[426750982,1782779450000,-2365.973,0.00030535,26]
[426750999,1782779450000,-260.49367177,0.00030794,2]
[426751028,1782779450000,-655.9900078,0.000315,2]
[426751029,1782779450000,-655.99000779,0.000315,2]
[426751027,1782779450000,-800.0,0.000315,2]
[426751030,1782779450000,-655.99000779,0.000315,2]
[426751034,1782779450000,-221.0,0.00031619,30]
[426751033,1782779450000,-157.0,0.00031617,30]
[426751037,1782779450000,-392.0,0.00031619,30]
[426751036,1782779450000,-332.0,0.00031619,30]
[426751032,1782779450000,-342.547923,0.000316,5]
[426751031,1782779450000,-89324.29251504,0.00031567,120]
[426751035,1782779450000,-155.0,0.00031619,30]
[426751026,1782779450000,-150.0,0.00031493,30]
[426751039,1782779450000,-176.0,0.00031619,30]
[426751038,1782779450000,-156.0,0.00031619,30]
[426751041,1782779450000,-152.0,0.00031619,30]
[426751040,1782779450000,-464.0,0.00031619,30]
[426751042,1782779450000,-171.0,0.00031619,30]
[426751046,1782779450000,-159.61,0.00031649,2]
[426751047,1782779450000,-283.0,0.0003166,2]
[426751043,1782779450000,-652.0,0.00031619,30]
[426751044,1782779450000,-163.0,0.00031619,30]